bitfinex-derivatives/quotes_ETHF0:USTF0_20210102
["timestamp","ask_amount","ask_price","bid_price","bid_amount"]
[1609572579609,6.26050891,734.86,734.75,6.01438]
[1609572581009,6.01438,734.86,734.75,6.01438]
[1609572581608,6.01438,734.76,734.75,6.01438]
[1609572582713,0.24572854,734.86,734.75,6.01438]
[1609572583214,0.24555345,734.81,734.75,6.01438]
[1609572584012,0.24556684,734.85,734.75,6.01438]
[1609572584413,0.24556684,734.85,734.84,103.7657]
[1609572585614,0.24556684,734.85,734.84,109.78008]
[1609572587614,0.24562053,734.89,734.84,109.78008]
[1609572588018,6.01438,734.91,734.84,109.78008]
[1609572602127,0.24576608,735.07,734.84,6.01438]
[1609572602329,0.24576608,735.07,735.06,85.0893]
[1609572603733,0.24576608,735.07,735.06,91.10368]
[1609572604535,0.24576608,735.07,735.06,95.81068]
[1609572606837,0.2457328,735.09,735.06,95.81068]
[1609572607638,0.24496731,735.33,735.06,95.81068]
[1609572607837,0.24496731,735.33,735.32,6.01438]
[1609572608038,0.24496731,735.33,735.32,112.02148]
[1609572608641,0.24496568,735.35,735.32,112.02148]
[1609572609539,0.24496568,735.35,735.32,6.01438]
[1609572609946,0.24497626,735.36,735.32,6.01438]
[1609572610947,2.61308016,735.6,735.32,6.01438]
[1609572610948,0.24487913,735.38,735.32,6.01438]
[1609572613349,0.24480197,735.37,735.32,6.01438]
[1609572616654,0.24537713,735.39,735.32,6.01438]
[1609572618752,0.24557924,735.4,735.32,6.01438]
[1609572619151,0.24557924,735.4,735.06,4.707]
[1609572619352,0.2455641,735.41,735.02,102.1525]
[1609572619951,0.2455641,735.41,735.26,6.01438]
[1609572620355,0.24540971,735.3,735.26,6.01438]
[1609572620752,0.24540971,735.3,735.14,3.611]
[1609572621853,0.2456285,735.28,735.14,3.611]
[1609572622053,6.01438,735.27,735.16,6.01438]
[1609572622653,0.24566436,735.25,735.16,6.01438]
[1609572623054,0.24579414,735.27,735.16,6.01438]
[1609572623957,6.01438,735.23,735.16,6.01438]
[1609572628366,6.01438,735.23,735.15,15.9119]
[1609572629368,0.24550236,735.21,735.15,15.9119]
[1609572630267,0.2451999,735.19,735.15,15.9119]
[1609572631171,0.24518086,735.17,735.15,15.9119]
[1609572634975,0.24521415,735.16,735.15,15.9119]
[1609572636476,0.24538392,735.17,735.15,15.9119]
[1609572639582,0.16358254,735.16,735.15,15.9119]
[1609572647388,0.81686695,735.2,735.15,15.9119]
[1609572648289,0.81690713,735.19,735.15,15.9119]
[1609572653700,0.81681976,735.18,735.14,3.611]
[1609572653901,0.81681976,735.18,734.95,82.9031]
[1609572654101,0.81681976,735.18,734.71,4.304]
[1609572654303,6.01438,734.9,734.75,104.6657]
[1609572656205,6.01438,734.8,734.75,104.6657]
[1609572658508,6.01438,734.8,734.71,4.304]
[1609572658708,6.01438,734.8,734.61,6.01438]
[1609572662313,6.01438,734.62,734.61,6.01438]
[1609572662511,0.1630183,734.87,734.61,6.01438]
[1609572663512,0.16301818,734.85,734.61,6.01438]
[1609572664412,6.01438,734.73,734.61,6.01438]
[1609572664812,0.16301818,734.85,734.61,6.01438]
[1609572666115,0.16303701,734.87,734.61,6.01438]
[1609572666513,6.01438,734.68,734.61,6.01438]
[1609572668816,6.01438,734.68,734.6,85.4889]
[1609572669016,6.01438,734.68,734.26,14.93357934]
[1609572669215,6.01438,734.68,734.41,101.0628]
[1609572670516,111.556,734.72,734.52,6.01438]
[1609572670916,111.556,734.72,734.52,9.63138]
[1609572671117,111.556,734.72,734.52,22.03198]
[1609572672515,6.01438,734.53,734.52,22.03198]
[1609572673619,111.556,734.72,734.52,22.03198]
[1609572673918,0.16302184,734.77,734.52,9.63138]
[1609572674321,0.16302184,734.77,734.54,109.2385]
[1609572674519,6.01438,734.62,734.54,109.2385]
[1609572674718,0.16308781,734.76,734.54,109.2385]
[1609572676121,0.16313643,734.78,734.54,109.2385]
[1609572676518,6.01438,734.68,734.54,109.2385]
[1609572678421,6.01438,734.68,734.52,9.63138]
[1609572678624,6.01438,734.58,734.52,9.63138]
[1609572679320,84.0641,734.71,734.52,9.63138]
[1609572680623,6.01438,734.64,734.52,9.63138]
[1609572682127,6.01438,734.64,734.53,12.6207]
[1609572685329,84.0641,734.71,734.53,12.6207]
[1609572685528,0.1630428,734.76,734.52,9.63138]
[1609572685728,0.1630428,734.76,734.58,113.7551]
[1609572685929,0.1630992,734.77,734.58,113.7551]
[1609572686732,6.01438,734.59,734.58,113.7551]
[1609572687030,0.1630992,734.77,734.52,9.63138]
[1609572688432,0.16317434,734.76,734.52,9.63138]
[1609572688833,6.01438,734.53,734.52,9.63138]
[1609572691234,85.92508,734.53,734.52,9.63138]
[1609572692437,6.01438,734.53,734.52,9.63138]
[1609572692838,6.01438,734.53,734.52,3.617]
[1609572693043,6.01438,734.53,734.34,109.1491]
[1609572694744,6.01438,734.35,734.34,109.1491]
[1609572697851,6.01438,734.35,734.18,6.01438]
[1609572698250,82.2683,734.38,734.18,6.01438]
[1609572698450,82.2683,734.38,734.18,9.07938]
[1609572700853,6.01438,734.19,734.18,9.07938]
[1609572703658,6.01438,734.19,734.18,3.065]
[1609572703858,6.01438,734.19,733.95,97.94]
[1609572704858,6.01438,733.99,733.95,97.94]
[1609572705861,87.2408,734.21,733.95,97.94]
[1609572706262,87.2408,734.21,733.95,102.001]
[1609572706861,6.01438,734.09,733.99,6.01438]
[1609572707061,0.16295227,734.39,734.04,87.0665]
[1609572707964,97.8033,734.49,734.04,87.0665]
[1609572707965,0.1629803,734.42,734.04,87.0665]
[1609572708866,6.01438,734.23,734.04,87.0665]
[1609572709064,6.01438,734.23,733.99,6.01438]
[1609572711571,6.01438,734.23,734.0,76.3215]
[1609572712671,0.16303341,734.42,734.0,76.3215]
[1609572712872,6.01438,734.36,734.1,6.01438]
[1609572713071,12.974,734.32,734.1,6.01438]
[1609572716175,12.974,734.32,734.1,18.44168]
[1609572716877,6.01438,734.23,734.1,18.44168]
[1609572717076,6.01438,734.23,734.1,6.01438]
[1609572717376,6.01438,734.23,734.22,86.5919]
[1609572717877,6.01438,734.23,734.22,90.9139]
[1609572718078,0.16286897,734.44,734.22,90.9139]
[1609572718477,0.16288527,734.45,734.22,90.9139]
[1609572718877,6.17726527,734.45,734.25,6.01438]
[1609572719078,6.01438,734.45,734.25,6.01438]
[1609572719479,6.01438,734.45,734.22,90.9139]
[1609572720881,6.01438,734.31,734.22,90.9139]
[1609572722483,0.16283005,734.47,734.22,90.9139]
[1609572722883,6.01438,734.4,734.22,90.9139]
[1609572726993,6.01438,734.4,734.29,6.01438]
[1609572727294,6.01438,734.4,734.22,90.9139]
[1609572729096,6.01438,734.4,734.24,6.01438]
[1609572729296,95.1143,734.38,734.22,4.322]
[1609572729597,95.1143,734.38,734.01,105.0286]
[1609572730696,15.0,734.37,734.01,105.0286]
[1609572730897,0.4,734.22,734.01,105.0286]
[1609572731098,6.01438,734.02,733.95,4.061]
[1609572731300,100.9709,734.0,733.89,6.01438]
[1609572733000,6.01438,733.9,733.89,6.01438]
[1609572740411,100.9709,734.0,733.89,6.01438]
[1609572740612,100.9709,734.0,733.89,9.76938]
[1609572741313,6.01438,733.9,733.89,3.755]
[1609572742615,17.83988,733.9,733.89,3.755]
[1609572745721,17.83988,733.9,733.69,6.01438]
[1609572747323,6.01438,733.7,733.56,6.01438]
[1609572749526,11.8255,733.9,733.56,6.01438]
[1609572749728,11.8255,733.9,733.56,8.98538]
[1609572749930,0.16240826,734.04,733.56,8.98538]
[1609572750127,0.16240826,734.04,733.62,98.7448]
[1609572751029,0.81189676,734.11,733.62,98.7448]
[1609572751030,0.16242305,734.03,733.62,98.7448]
[1609572751328,6.01438,733.88,733.64,6.01438]
[1609572753337,6.01438,733.88,733.82,6.01438]
[1609572753537,6.01438,733.88,733.56,2.971]
[1609572754238,0.16245416,734.08,733.56,2.971]
[1609572755138,0.16245416,734.08,733.55,96.6908]
[1609572755340,6.01438,733.96,733.85,6.01438]
[1609572755738,6.01438,733.96,733.51,14.94787687]
[1609572756639,6.01438,733.96,733.5,14.94755035]
[1609572757341,6.01438,733.85,733.75,6.01438]
[1609572757543,6.01438,733.85,733.5,14.94755035]
[1609572757741,0.16264111,734.07,733.5,14.94755035]
[1609572757742,91.4577,733.76,733.5,14.94755035]
[1609572758843,0.16264111,734.07,733.51,14.94980431]
[1609572759043,92.0345,734.03,733.51,14.94980431]
[1609572759243,92.0345,734.03,733.51,18.84780431]
[1609572759444,6.01438,733.7,733.54,6.01438]
[1609572759853,92.0345,734.03,733.54,6.01438]
[1609572760146,0.16264111,734.07,733.54,6.01438]
[1609572760349,0.16264111,734.07,733.72,106.7115]
[1609572760547,0.16264111,734.07,733.72,110.4295]
[1609572760747,0.16261085,733.97,733.72,110.4295]
[1609572761448,6.01438,733.83,733.72,3.718]
[1609572763449,6.01438,733.73,733.72,3.718]
[1609572764549,0.16258259,733.99,733.72,3.718]
[1609572765451,6.01438,733.73,733.72,3.718]
[1609572765949,6.01438,733.73,733.6,80.5538]
[1609572767151,104.8752,734.1,733.6,80.5538]
[1609572767152,0.16260759,733.99,733.6,80.5538]
[1609572767552,6.01438,733.8,733.6,80.5538]
[1609572769453,6.01438,733.67,733.6,80.5538]
[1609572770453,0.16254653,733.93,733.6,80.5538]
[1609572770855,0.16255844,733.95,733.6,80.5538]
[1609572771558,6.01438,733.94,733.81,6.01438]
[1609572771760,0.16255844,733.95,733.81,6.01438]
[1609572771956,0.16255844,733.95,733.81,9.17638]
[1609572772255,105.0029,734.4,733.81,9.17638]
[1609572772256,0.16261575,734.01,733.81,9.17638]
[1609572772656,0.16281993,734.12,733.81,9.17638]
[1609572773056,0.16290796,734.2,733.81,24.17638]
[1609572773259,0.16290796,734.2,734.05,96.3763]
[1609572773455,0.16290796,734.2,734.15,6.01438]
[1609572773657,0.16294185,734.24,734.15,6.01438]
[1609572774357,6.17740814,734.3,734.15,6.01438]
[1609572774558,0.16302814,734.3,734.15,6.01438]
[1609572775559,0.16302814,734.3,734.28,6.01438]
[1609572775762,0.16304482,734.32,734.28,6.01438]
[1609572777162,0.16304482,734.32,733.99,76.2565]
[1609572777362,0.16308337,734.35,733.99,76.2565]
[1609572777562,6.01438,734.2,734.07,6.01438]
[1609572779566,6.01438,734.2,733.99,76.2565]
[1609572781168,0.16258269,734.19,733.99,76.2565]
[1609572781470,0.16258269,734.19,734.05,6.01438]
[1609572781869,0.16258269,734.19,733.96,4.264]
[1609572782269,0.16258269,734.19,733.85,83.4868]
[1609572782471,6.01438,734.2,733.85,83.4868]
[1609572783473,6.01438,734.12,733.92,6.01438]
[1609572783774,0.16257308,734.24,733.92,6.01438]
[1609572784876,0.16260265,734.25,733.92,6.01438]
[1609572785480,2.60164233,734.51,733.85,83.4868]
[1609572785481,6.01438,734.15,734.01,6.01438]
[1609572786779,0.1628088,734.33,734.01,6.01438]
[1609572786977,0.1628088,734.33,734.01,10.25638]
[1609572787181,0.16285533,734.35,734.01,21.95968]
[1609572787481,6.01438,734.34,734.2,6.01438]
[1609572789583,6.01438,734.34,734.18,107.4269]
[1609572789584,6.01438,734.34,734.33,6.01438]
[1609572791388,0.16299621,734.47,734.33,6.01438]
[1609572791585,0.16299621,734.47,734.46,6.01438]
[1609572792387,0.16302571,734.5,734.46,6.01438]
[1609572793496,6.01438,734.47,734.46,6.01438]
[1609572796497,0.16295862,734.55,734.46,6.01438]
[1609572797396,0.81479311,734.62,734.46,6.01438]
[1609572797397,0.16298897,734.58,734.46,6.01438]
[1609572797596,0.16298897,734.58,734.57,6.01438]
[1609572797997,0.16302978,734.6,734.57,6.01438]
[1609572798296,0.16303699,734.61,734.57,6.01438]
[1609572800898,0.16303608,734.59,734.57,6.01438]
[1609572801700,6.01438,734.58,734.42,114.6376]
[1609572803604,6.01438,734.58,734.47,6.01438]
[1609572804002,0.16295485,734.55,734.47,6.01438]
[1609572804204,0.16295485,734.55,734.42,114.6376]
[1609572805002,0.16295636,734.56,734.42,114.6376]
[1609572805602,0.16295636,734.56,734.45,6.01438]
[1609572806502,6.01438,734.58,734.45,6.01438]
[1609572806503,6.17735707,734.58,734.45,6.01438]
[1609572807903,0.16294914,734.57,734.45,6.01438]
[1609572809805,6.1773508,734.58,734.45,6.01438]
[1609572810603,6.1773508,734.58,734.42,114.6376]
[1609572810805,0.16295842,734.57,734.42,114.6376]
[1609572812308,6.01438,734.58,734.42,114.6376]
[1609572812309,6.17734958,734.58,734.42,114.6376]
[1609572816114,0.16289846,734.57,734.42,114.6376]
[1609572817315,0.16289846,734.57,734.42,4.761]
[1609572817716,6.01438,734.43,734.4,6.01438]
[1609572820319,6.01438,734.43,734.26,89.1647]
[1609572821623,6.01438,734.43,734.27,6.01438]
[1609572823726,6.01438,734.35,734.27,6.01438]
[1609572857774,0.16322595,734.54,734.26,4.215]
[1609572858173,0.16322595,734.54,734.25,92.7177]
[1609572858373,0.16322595,734.54,734.4,6.01438]
[1609572858577,0.16322264,734.52,734.4,6.01438]
[1609572859976,109.9496,734.72,734.4,6.01438]
[1609572859977,0.1631549,734.5,734.4,6.01438]
[1609572860480,6.01438,734.41,734.4,6.01438]
[1609572862583,6.01438,734.41,734.01,4.242]
[1609572862781,109.77718,734.41,734.05,80.3132]
[1609572862979,6.01438,734.41,734.05,4.599]
[1609572863180,21.01438,734.41,734.05,4.599]
[1609572863379,83.2611,734.26,734.05,4.599]
[1609572864180,98.2611,734.26,734.05,4.599]
[1609572864381,6.01438,734.06,734.05,4.599]
[1609572864783,100.58198,734.06,734.05,4.599]
[1609572864981,100.58198,734.06,734.05,4.199]
[1609572864982,6.01438,734.06,734.05,4.199]
[1609572865183,21.01438,734.06,734.05,4.199]
[1609572865580,21.01438,734.06,733.77,84.0322]
[1609572866181,6.01438,734.06,733.77,84.0322]
[1609572866381,6.01438,733.78,733.77,6.01438]
[1609572866782,6.01438,733.78,733.5,14.94860593]
[1609572867881,6.01438,733.78,733.47,14.94896621]
[1609572868183,6.01438,733.78,733.45,98.3141]
[1609572868381,6.01438,733.63,733.61,6.01438]
[1609572868781,6.01438,733.63,733.62,103.5569]
[1609572868981,6.01438,733.63,733.62,107.9239]
[1609572869182,0.04067659,733.98,733.62,107.9239]
[1609572869581,0.04067659,733.98,733.62,4.367]
[1609572869781,0.04067659,733.98,733.94,78.0174]
[1609572869982,0.04071835,734.0,733.94,78.0174]
[1609572870382,0.04071835,734.0,733.95,6.01438]
[1609572870785,0.20374364,734.13,733.95,6.01438]
[1609572871582,0.20386805,734.21,733.95,6.01438]
[1609572872482,0.20386805,734.21,734.13,6.01438]
[1609572872885,0.16321695,734.25,734.13,6.01438]
[1609572873586,0.16319583,734.23,734.13,6.01438]
[1609572874486,6.01438,734.14,734.13,6.01438]
[1609572874692,0.16319583,734.23,734.13,6.01438]
[1609572875593,0.16318159,734.22,734.13,6.01438]
[1609572877094,0.24473075,734.22,734.13,6.01438]
[1609572877798,0.24472243,734.27,734.13,6.01438]
[1609572877997,0.24472243,734.27,734.07,95.7155]
[1609572878499,6.01438,734.2,734.07,95.7155]
[1609572880400,6.01438,734.2,734.05,6.01438]
[1609572882803,6.01438,734.2,734.03,3.722]
[1609572883001,6.01438,734.2,733.88,81.4925]
[1609572884903,6.01438,733.97,733.88,81.4925]
[1609572886404,6.01438,733.97,733.86,6.01438]
[1609572886803,6.01438,733.97,733.96,6.01438]
[1609572887002,6.01438,733.97,733.96,88.23788]
[1609572889708,0.2446082,734.23,733.96,88.23788]
[1609572890210,0.24461469,734.24,733.96,88.23788]
[1609572890508,0.24461469,734.24,733.96,6.01438]
[1609572890908,1.30461171,734.35,733.84,3.596]
[1609572890909,0.24469821,734.28,733.84,3.596]
[1609572891109,0.24469821,734.28,733.77,89.91]
[1609572891610,0.08152622,734.2,733.77,89.91]
[1609572891810,0.24457866,734.2,733.77,89.91]
[1609572892113,0.24452774,734.16,733.77,89.91]
[1609572892509,0.24452774,734.16,733.62,19.367]
[1609572892711,0.24452774,734.16,733.86,79.3968]
[1609572892910,6.01438,733.97,733.93,6.01438]
[1609572893412,6.01438,733.97,733.94,97.9584]
[1609572909937,6.01438,733.97,733.95,0.6]
[1609572915943,6.01438,733.97,733.96,112.5193]
[1609572916844,6.01438,733.97,733.96,118.53368]
[1609572917646,6.01438,733.97,733.96,133.53368]
[1609572917845,6.01438,733.97,733.96,118.53368]
[1609572918647,6.01438,733.97,733.96,6.01438]
[1609572927761,6.01438,733.97,733.96,18.63768]
[1609572936270,5.81438,733.97,733.96,18.63768]
[1609572937774,0.24580037,734.25,733.96,18.63768]
[1609572937973,0.24580037,734.25,733.96,6.01438]
[1609572938173,0.24580037,734.25,734.03,88.3461]
[1609572938375,0.24581671,734.26,734.03,91.4541]
[1609572938973,0.24581671,734.26,734.25,6.01438]
[1609572939178,0.24582864,734.29,734.25,6.01438]
[1609572939373,0.24582864,734.29,734.25,104.43938]
[1609572939775,6.01438,734.3,734.25,104.43938]
[1609572940176,0.24592478,734.35,734.25,104.43938]
[1609572940776,0.24594679,734.37,734.25,104.43938]
[1609572940976,0.24594679,734.37,734.36,6.01438]
[1609572941475,0.24594679,734.37,734.36,16.90778]
[1609572941678,0.24596394,734.38,734.36,16.90778]
[1609572942278,6.26036943,734.39,734.36,16.90778]
[1609572943083,6.01438,734.39,734.36,16.90778]
[1609572943283,6.01438,734.39,734.36,10.8934]
[1609572945082,6.01438,734.39,734.38,6.01438]
[1609572945882,6.25980061,734.39,734.38,6.01438]
[1609572948788,6.01438,734.39,734.38,6.01438]
[1609572952092,0.24554043,734.4,734.36,10.8934]
[1609572952993,6.01438,734.39,734.36,10.8934]
[1609572958000,0.24565233,734.42,734.36,10.8934]
[1609572959103,6.01438,734.39,734.36,16.90778]
[1609572960401,6.01438,734.39,734.36,6.01438]
[1609572967010,0.24571498,734.46,734.36,6.01438]
[1609572967213,0.24571498,734.46,734.45,118.20148]
[1609572967410,0.08190499,734.46,734.45,118.20148]
[1609572967613,0.81904993,734.51,734.45,118.20148]
[1609572969214,0.24604649,734.66,734.45,118.20148]
[1609572970114,0.24621756,734.76,734.45,118.20148]
[1609572970516,0.24621756,734.76,734.45,6.01438]
[1609572971115,0.24621756,734.76,734.75,6.01438]
[1609572971514,0.24621756,734.76,734.75,9.82238]
[1609572972415,0.82072518,734.81,734.75,9.82238]
[1609572972616,0.82072518,734.81,734.75,3.808]
[1609572972818,0.24624126,734.81,734.75,3.808]
[1609572973219,6.01438,734.76,734.75,3.808]
[1609572973517,0.24624126,734.81,734.75,3.808]
[1609572973718,0.24624126,734.81,734.8,96.459]
[1609572974818,0.24624126,734.81,734.75,3.808]
[1609572975219,6.01438,734.77,734.75,9.82238]
[1609572976521,0.24654186,734.89,734.75,9.82238]
[1609572977121,6.01438,734.8,734.75,9.82238]
[1609572977720,0.24657021,734.91,734.75,9.82238]
[1609572978423,0.24651369,734.87,734.75,9.82238]
[1609572979222,6.01438,734.81,734.75,9.82238]
[1609572983326,6.26094958,734.91,734.75,9.82238]
[1609572983726,6.26094958,734.91,734.89,83.1968]
[1609572984028,6.26094958,734.91,734.75,9.82238]
[1609572984029,6.01438,734.91,734.75,9.82238]
[1609572985228,6.01438,734.78,734.75,9.82238]
[1609572985429,0.24659394,734.93,734.75,9.82238]
[1609572985831,0.2465846,734.92,734.75,9.82238]
[1609572986835,0.2465846,734.92,734.91,78.1596]
[1609572987231,6.2609646,734.92,734.91,78.1596]
[1609572988237,6.2609646,734.92,734.88,6.01438]
[1609572988436,6.2609646,734.92,734.75,91.5355]
[1609572989041,6.01438,734.92,734.75,91.5355]
[1609572989239,0.24661694,734.93,734.75,91.5355]
[1609572989240,0.24661694,734.93,734.84,6.01438]
[1609572990048,0.24655082,734.9,734.84,6.01438]
[1609572990239,0.24655082,734.9,734.75,91.5355]
[1609572990641,0.24655848,734.89,734.75,91.5355]
[1609572991242,6.01438,734.76,734.75,91.5355]
[1609572991843,0.24647829,734.82,734.75,91.5355]
[1609572993243,6.01438,734.8,734.75,91.5355]
[1609572993547,6.26084344,734.8,734.75,91.5355]
[1609572993945,0.24646344,734.8,734.75,91.5355]
[1609572994446,0.82154478,734.84,734.75,91.5355]
[1609572994447,0.24655893,734.81,734.75,91.5355]
[1609572995247,6.01438,734.76,734.75,91.5355]
[1609572998450,0.24656319,734.82,734.75,91.5355]
[1609572999150,0.2466624,734.81,734.75,91.5355]
[1609572999351,6.01438,734.8,734.79,6.01438]
[1609573000452,6.01438,734.8,734.75,91.5355]
[1609573002555,6.26109312,734.8,734.75,91.5355]
[1609573003456,6.01438,734.8,734.75,91.5355]
[1609573004357,0.246765,734.83,734.75,91.5355]
[1609573005359,0.246765,734.83,734.82,6.01438]
[1609573005758,0.246765,734.83,734.82,94.28188]
[1609573005960,6.01438,734.85,734.82,94.28188]
[1609573006259,0.24685855,734.9,734.82,94.28188]
[1609573006666,0.24685855,734.9,734.82,6.01438]
[1609573007060,0.24685855,734.9,734.75,3.808]
[1609573007262,6.01438,734.76,734.6,90.7167]
[1609573009262,0.24679413,734.86,734.65,6.01438]
[1609573009564,0.24677751,734.84,734.65,9.96538]
[1609573011265,6.01438,734.76,734.65,9.96538]
[1609573012367,0.24677751,734.84,734.65,9.96538]
[1609573012868,0.24677751,734.84,734.73,102.8318]
[1609573013068,0.24678644,734.85,734.73,102.8318]
[1609573013268,6.01438,734.76,734.75,6.01438]
[1609573017074,6.01438,734.76,734.73,102.8318]
[1609573017275,6.01438,734.76,734.75,6.01438]
[1609573017474,6.01438,734.76,734.73,102.8318]
[1609573017774,0.24828246,734.87,734.73,102.8318]
[1609573018278,0.24825849,734.86,734.73,102.8318]
[1609573019277,0.24825849,734.86,734.76,6.01438]
[1609573019476,1.07579347,734.87,734.76,6.01438]
[1609573021180,0.24822042,734.88,734.78,113.5858]
[1609573023285,0.24822042,734.88,734.84,6.01438]
[1609573023785,0.24822042,734.88,734.78,113.5858]
[1609573023985,1.07547848,734.89,734.78,113.5858]
[1609573024886,0.24810433,734.88,734.78,113.5858]
[1609573025286,6.01438,734.83,734.78,119.60018]
[1609573026487,6.01438,734.83,734.78,113.5858]
[1609573027187,0.24810433,734.88,734.78,113.5858]
[1609573027388,0.2479536,734.87,734.78,113.5858]
[1609573029294,0.2479536,734.87,734.86,6.01438]
[1609573029891,0.2479536,734.87,734.78,113.5858]
[1609573032794,0.24792996,734.88,734.78,113.5858]
[1609573033294,6.01438,734.79,734.78,113.5858]
[1609573034199,0.24792996,734.88,734.78,113.5858]
[1609573034599,0.24796209,734.87,734.78,113.5858]
[1609573038005,0.24796209,734.87,734.76,6.01438]
[1609573038208,0.24796209,734.87,734.86,112.5219]
[1609573039308,0.24796209,734.87,734.86,118.53628]
[1609573039508,0.82654028,734.88,734.86,118.53628]
[1609573039509,0.24794883,734.88,734.86,118.53628]
[1609573039910,0.24794883,734.88,734.86,6.01438]
[1609573040411,0.24794883,734.88,734.87,91.8276]
[1609573040610,6.01438,734.91,734.87,91.8276]
[1609573047717,0.2478247,734.93,734.87,91.8276]
[1609573051526,0.24784657,734.95,734.92,6.01438]
[1609573051926,0.24784657,734.95,734.87,91.8276]
[1609573052624,0.24784657,734.95,734.82,4.761]
[1609573053024,0.24784657,734.95,734.73,90.6575]
[1609573053525,6.01438,734.8,734.79,6.01438]
[1609573054326,6.01438,734.8,734.73,90.6575]
[1609573054726,6.01438,734.8,734.65,3.951]
[1609573054927,15.0,734.79,734.51,111.9082]
[1609573055127,95.2463,734.78,734.33,3.171]
[1609573055327,15.0,734.77,734.29,97.2639]
[1609573055527,15.0,734.77,734.45,6.01438]
[1609573055926,15.0,734.77,734.45,9.88238]
[1609573056129,0.24753632,734.72,734.45,9.88238]
[1609573056730,0.24753632,734.72,734.48,109.5266]
[1609573057629,0.24753632,734.72,734.56,6.01438]
[1609573057833,15.0,734.9,734.56,6.01438]
[1609573057834,0.82435493,734.58,734.56,6.01438]
[1609573058833,0.24736829,734.59,734.56,6.01438]
[1609573059331,0.24736829,734.59,734.48,109.5266]
[1609573059531,0.24736829,734.59,734.58,6.01438]
[1609573060836,0.24736098,734.62,734.61,103.7021]
[1609573061035,0.24736098,734.62,734.58,6.01438]
[1609573062636,0.24755637,734.74,734.63,77.3551]
[1609573062836,0.82518792,734.75,734.63,77.3551]
[1609573063438,6.01438,734.8,734.63,77.3551]
[1609573063638,6.01438,734.8,734.76,6.01438]
[1609573064841,6.01438,734.8,734.79,92.1563]
[1609573065641,0.24769683,734.82,734.79,92.1563]
[1609573067443,0.2476923,734.83,734.79,92.1563]
[1609573068744,0.24772556,734.85,734.79,92.1563]
[1609573069644,0.24772556,734.85,734.84,6.01438]
[1609573073748,0.24772556,734.85,734.79,92.1563]
[1609573075048,0.24772556,734.85,734.75,6.01438]
[1609573075449,0.24803449,734.86,734.75,6.01438]
[1609573075949,0.24803449,734.86,734.85,6.01438]
[1609573077151,0.24816066,734.87,734.85,6.01438]
[1609573078252,0.2481495,734.86,734.85,6.01438]
[1609573079654,0.82716502,734.87,734.85,6.01438]
[1609573079655,0.24816231,734.87,734.85,6.01438]
[1609573080559,0.24816231,734.87,734.84,99.808]
[1609573084161,0.24816231,734.87,734.84,105.82238]
[1609573085360,0.24815214,734.86,734.84,105.82238]
[1609573086161,6.01438,734.85,734.84,105.82238]
[1609573087364,6.01438,734.85,734.84,99.808]
[1609573093266,8.72508,734.85,734.84,99.808]
[1609573093467,6.01438,734.85,734.84,99.808]
[1609573093868,6.83901927,734.85,734.84,99.808]
[1609573096874,6.26175003,734.85,734.84,99.808]
[1609573097975,6.26175003,734.85,734.68,3.278]
[1609573098172,6.26175003,734.85,734.55,93.3569]
[1609573098373,6.01438,734.72,734.65,6.01438]
[1609573099976,6.01438,734.72,734.66,12.5861]
[1609573100175,6.01438,734.72,734.66,16.5701]
[1609573103877,6.01438,734.72,734.66,3.984]
[1609573104879,21.01438,734.72,734.66,3.984]
[1609573105277,15.0,734.66,734.6,3.969]
[1609573106378,6.01438,734.61,734.36,106.9057]
[1609573106580,21.01438,734.61,734.17,6.01438]
[1609573106778,88.0501,734.53,734.17,6.01438]
[1609573107181,88.0501,734.53,734.15,14.94198398]
[1609573108381,6.01438,734.16,734.15,14.94198398]
[1609573108583,6.01438,734.16,734.1,6.01438]
[1609573113884,6.01438,734.16,734.04,109.0898]